[Event "Late-Titled-Tuesday-Blitz-September-26-2023"]
[Site "Chess.com"]
[Date "2023.09.26"]
[Round "8"]
[White "ozates"]
[Black "filipluczak05"]
[Result "1-0"]
[WhiteElo "2543"]
[BlackElo "2627"]
[TimeControl "180+1"]
[EndTime "15:27:09 PDT"]
[Termination "ozates won by resignation"]

1. c4 {[%clk 0:03:00.9]} 1... g6 {[%clk 0:02:56.4]} 2. Nc3 {[%clk 0:03:00.5]}
2... Bg7 {[%clk 0:02:56.9]} 3. g3 {[%clk 0:03:01.4]} 3... c5 {[%clk 0:02:55.2]}
4. Bg2 {[%clk 0:03:01.8]} 4... Nc6 {[%clk 0:02:55.7]} 5. e4 {[%clk 0:03:01.9]}
5... d6 {[%clk 0:02:56.1]} 6. Nge2 {[%clk 0:03:02.5]} 6... e6 {[%clk 0:02:53.3]}
7. O-O {[%clk 0:03:03.1]} 7... Nge7 {[%clk 0:02:53.8]} 8. d3 {[%clk 0:03:03.8]}
8... O-O {[%clk 0:02:54.4]} 9. Be3 {[%clk 0:03:04.5]} 9... Nd4 {[%clk 0:02:52]}
10. a3 {[%clk 0:03:03.1]} 10... a6 {[%clk 0:02:51.6]} 11. Qd2 {[%clk 0:03:03.4]}
11... Rb8 {[%clk 0:02:51.7]} 12. Rab1 {[%clk 0:03:00.3]} 12... b5 {[%clk
0:02:51.6]} 13. cxb5 {[%clk 0:02:59]} 13... axb5 {[%clk 0:02:52.5]} 14. b4
{[%clk 0:02:59.7]} 14... Nec6 {[%clk 0:02:52.1]} 15. Bh6 {[%clk 0:02:55.1]}
15... Qf6 {[%clk 0:02:42.5]} 16. bxc5 {[%clk 0:02:28.9]} 16... dxc5 {[%clk
0:02:41.2]} 17. Nxd4 {[%clk 0:02:20.9]} 17... Nxd4 {[%clk 0:02:35.2]} 18. Bg5
{[%clk 0:02:02.4]} 18... Nf3+ {[%clk 0:02:33.2]} 19. Bxf3 {[%clk 0:02:02.9]}
19... Qxc3 {[%clk 0:02:32.4]} 20. Qxc3 {[%clk 0:01:59.5]} 20... Bxc3 {[%clk
0:02:32.7]} 21. Be7 {[%clk 0:01:59.6]} 21... Re8 {[%clk 0:02:20.3]} 22. Bxc5
{[%clk 0:01:59.1]} 22... e5 {[%clk 0:02:18.4]} 23. Rfc1 {[%clk 0:01:57]} 23...
Bd2 {[%clk 0:02:16.6]} 24. Rc2 {[%clk 0:01:56.7]} 24... Bh6 {[%clk 0:02:13.1]}
25. Bd6 {[%clk 0:01:54.3]} 25... Rb6 {[%clk 0:02:13.2]} 26. Bxe5 {[%clk
0:01:53]} 26... Bh3 {[%clk 0:02:06.7]} 27. d4 {[%clk 0:01:26.4]} 27... Ra6
{[%clk 0:02:04.2]} 28. Rc3 {[%clk 0:01:19.5]} 28... Rea8 {[%clk 0:01:56.9]} 29.
Bg2 {[%clk 0:01:13.3]} 29... Bd7 {[%clk 0:01:49.6]} 30. Rc7 {[%clk 0:01:12.2]}
30... Be8 {[%clk 0:01:48.9]} 31. Bf1 {[%clk 0:01:04.2]} 31... Rxa3 {[%clk
0:01:43.4]} 32. Bxb5 {[%clk 0:01:04.8]} 32... Ra1 {[%clk 0:01:41.6]} 33. Rxa1
{[%clk 0:00:52.6]} 33... Rxa1+ {[%clk 0:01:39.9]} 34. Kg2 {[%clk 0:00:41.2]}
34... Bxb5 {[%clk 0:01:33.8]} 35. Rc8+ {[%clk 0:00:41.7]} 35... Bf8 {[%clk
0:01:30.8]} 36. Bd6 {[%clk 0:00:42.1]} 36... Bf1+ {[%clk 0:01:29.8]} 37. Kf3
{[%clk 0:00:42.4]} 37... h5 {[%clk 0:01:17.2]} 38. Bxf8 {[%clk 0:00:33.1]} 38...
Kh7 {[%clk 0:01:14.7]} 39. d5 {[%clk 0:00:33.8]} 39... g5 {[%clk 0:01:10.5]} 40.
Bc5 {[%clk 0:00:28.9]} 40... Ra4 {[%clk 0:01:04.3]} 41. d6 {[%clk 0:00:26.9]}
41... Bh3 {[%clk 0:00:58]} 42. Rd8 {[%clk 0:00:18.6]} 42... Kg6 {[%clk
0:00:51.4]} 43. d7 {[%clk 0:00:17.9]} 43... Kf6 {[%clk 0:00:48.6]} 44. e5+
{[%clk 0:00:14.3]} 44... Ke6 {[%clk 0:00:43.7]} 45. Ke3 {[%clk 0:00:08.4]} 45...
Rc4 {[%clk 0:00:27.5]} 46. Bd6 {[%clk 0:00:08.7]} 46... Rc3+ {[%clk 0:00:17.2]}
47. Kd4 {[%clk 0:00:08.9]} 47... Rf3 {[%clk 0:00:16.4]} 48. Rh8 {[%clk
0:00:02.9]} 48... Kxd7 {[%clk 0:00:14.9]} 49. Rxh5 {[%clk 0:00:03.4]} 49... Be6
{[%clk 0:00:14.3]} 50. Rxg5 {[%clk 0:00:03.8]} 50... Rxf2 {[%clk 0:00:14.4]} 51.
h4 {[%clk 0:00:04.4]} 51... Kc6 {[%clk 0:00:13.4]} 52. h5 {[%clk 0:00:04.4]}
52... Rd2+ {[%clk 0:00:14.1]} 53. Ke3 {[%clk 0:00:04.4]} 53... Rh2 {[%clk
0:00:14.8]} 54. g4 {[%clk 0:00:04]} 54... Rh3+ {[%clk 0:00:14]} 55. Kf4 {[%clk
0:00:04.5]} 55... Bd5 {[%clk 0:00:14.7]} 56. Rg7 {[%clk 0:00:04.3]} 56... Rf3+
{[%clk 0:00:15.3]} 57. Kg5 {[%clk 0:00:04.8]} 57... Rg3 {[%clk 0:00:13.9]} 58.
h6 {[%clk 0:00:04.5]} 58... Be6 {[%clk 0:00:14.6]} 59. Kf4 {[%clk 0:00:03.9]}
59... Rh3 {[%clk 0:00:14.6]} 60. g5 {[%clk 0:00:02.9]} 60... Kd5 {[%clk
0:00:15.2]} 61. Rg8 {[%clk 0:00:01.7]} 61... Rh4+ {[%clk 0:00:15.1]} 62. Kg3
{[%clk 0:00:02]} 62... Rg4+ {[%clk 0:00:16]} 63. Kf3 {[%clk 0:00:02.6]} 63...
Rh4 {[%clk 0:00:15.5]} 64. Ke3 {[%clk 0:00:01.8]} 64... Rh3+ {[%clk 0:00:16.4]}
65. Kd2 {[%clk 0:00:02.1]} 65... Rh2+ {[%clk 0:00:17.3]} 66. Kc3 {[%clk
0:00:02.2]} 66... Rh3+ {[%clk 0:00:17.2]} 67. Kb4 {[%clk 0:00:02.8]} 67... Ke4
{[%clk 0:00:18.1]} 68. Kb5 {[%clk 0:00:03.4]} 68... Kd5 {[%clk 0:00:17.8]} 69.
Kb6 {[%clk 0:00:04]} 69... Rb3+ {[%clk 0:00:18.4]} 70. Kc7 {[%clk 0:00:04.6]}
70... Rc3+ {[%clk 0:00:18.7]} 71. Kb7 {[%clk 0:00:04.2]} 71... Rb3+ {[%clk
0:00:19.1]} 72. Ka6 {[%clk 0:00:04.7]} 72... Kc6 {[%clk 0:00:17.6]} 73. h7
{[%clk 0:00:03.8]} 73... Rb1 {[%clk 0:00:10.2]} 74. Ka5 {[%clk 0:00:04.1]} 74...
Kd5 {[%clk 0:00:03.3]} 75. h8=Q {[%clk 0:00:02.2]} 75... Ra1+ {[%clk 0:00:04.2]}
76. Kb4 {[%clk 0:00:01.9]} 76... Rb1+ {[%clk 0:00:05.1]} 77. Kc3 {[%clk
0:00:02.6]} 77... Rc1+ {[%clk 0:00:05.5]} 78. Kd2 {[%clk 0:00:03.1]} 78... Rc4
{[%clk 0:00:06.4]} 79. Qh1+ {[%clk 0:00:03.2]} 79... Kd4 {[%clk 0:00:05.5]} 80.
Qf3 {[%clk 0:00:03.5]} 80... Bf5 {[%clk 0:00:06.3]} 81. Qe3+ {[%clk 0:00:03.9]}
81... Kd5 {[%clk 0:00:06.5]} 82. Qb3 {[%clk 0:00:04.6]} 82... Be6 {[%clk
0:00:05.5]} 83. g6 {[%clk 0:00:04.6]} 83... Kd4 {[%clk 0:00:05.5]} 84. Qe3+
{[%clk 0:00:04.7]} 84... Kd5 {[%clk 0:00:05.6]} 85. g7 {[%clk 0:00:05.4]} 85...
Rd4+ {[%clk 0:00:06.5]} 86. Qd3 {[%clk 0:00:05.6]} 86... Bf5 {[%clk 0:00:05.6]}
87. Qxd4+ {[%clk 0:00:05.5]} 87... Kxd4 {[%clk 0:00:06.2]} 88. Rf8 {[%clk
0:00:06.2]} 88... Bh7 {[%clk 0:00:06.4]} 89. g8=Q {[%clk 0:00:07.1]} 89... Bxg8
{[%clk 0:00:07.3]} 90. Rxg8 {[%clk 0:00:07.8]} 90... f5 {[%clk 0:00:08.1]} 91.
exf6 {[%clk 0:00:07.7]} 1-0

[Event "Late-Titled-Tuesday-Blitz-September-26-2023"]
[Site "Chess.com"]
[Date "2023.09.26"]
[Round "8"]
[White "Rutricks"]
[Black "alexrustemov"]
[Result "1-0"]
[WhiteElo "2692"]
[BlackElo "2867"]
[TimeControl "180+1"]
[EndTime "15:27:16 PDT"]
[Termination "Rutricks won on time"]

1. Nf3 {[%clk 0:03:00.9]} 1... d5 {[%clk 0:02:57]} 2. b3 {[%clk 0:03:00.7]} 2...
Bf5 {[%clk 0:02:55.7]} 3. Bb2 {[%clk 0:03:01.2]} 3... e6 {[%clk 0:02:56.1]} 4.
e3 {[%clk 0:03:01.7]} 4... h6 {[%clk 0:02:54.6]} 5. Be2 {[%clk 0:03:02.4]} 5...
Nf6 {[%clk 0:02:54.3]} 6. h3 {[%clk 0:03:03]} 6... Be7 {[%clk 0:02:53.4]} 7. c4
{[%clk 0:03:03.7]} 7... c6 {[%clk 0:02:52.1]} 8. Nc3 {[%clk 0:03:04.2]} 8...
Nbd7 {[%clk 0:02:51.4]} 9. O-O {[%clk 0:03:04.4]} 9... O-O {[%clk 0:02:51.1]}
10. Rc1 {[%clk 0:03:04]} 10... Re8 {[%clk 0:02:44.3]} 11. d3 {[%clk 0:02:55]}
11... Bh7 {[%clk 0:02:43.4]} 12. Qd2 {[%clk 0:02:46.1]} 12... Bd6 {[%clk
0:02:41.2]} 13. d4 {[%clk 0:02:40.4]} 13... Ne4 {[%clk 0:02:32]} 14. Nxe4 {[%clk
0:02:40.8]} 14... Bxe4 {[%clk 0:02:31]} 15. Qd1 {[%clk 0:02:13]} 15... Qe7
{[%clk 0:02:29.5]} 16. Bd3 {[%clk 0:02:11.1]} 16... f5 {[%clk 0:02:20.8]} 17.
Ne1 {[%clk 0:02:03.1]} 17... Qh4 {[%clk 0:02:16.5]} 18. Nf3 {[%clk 0:01:53.5]}
18... Qf6 {[%clk 0:02:13.1]} 19. Ne1 {[%clk 0:01:51.4]} 19... Qg5 {[%clk
0:02:05.9]} 20. Nf3 {[%clk 0:01:46.5]} 20... Bxf3 {[%clk 0:02:05.6]} 21. Qxf3
{[%clk 0:01:46.5]} 21... Nf6 {[%clk 0:02:04.4]} 22. cxd5 {[%clk 0:01:43.7]}
22... cxd5 {[%clk 0:02:03.6]} 23. Rc2 {[%clk 0:01:44]} 23... Ne4 {[%clk
0:02:00.5]} 24. Rfc1 {[%clk 0:01:35.9]} 24... Rf8 {[%clk 0:01:56]} 25. Bxe4
{[%clk 0:00:31]} 25... fxe4 {[%clk 0:01:55.2]} 26. Qg4 {[%clk 0:00:31.6]} 26...
Qf6 {[%clk 0:01:47.7]} 27. f4 {[%clk 0:00:31.5]} 27... exf3 {[%clk 0:01:47.3]}
28. Rf2 {[%clk 0:00:31.3]} 28... Qf5 {[%clk 0:01:37.1]} 29. Qxf5 {[%clk
0:00:31.5]} 29... exf5 {[%clk 0:01:34.9]} 30. Rxf3 {[%clk 0:00:30.5]} 30... h5
{[%clk 0:01:34.5]} 31. Kf1 {[%clk 0:00:29.3]} 31... g6 {[%clk 0:01:32.5]} 32.
Ke2 {[%clk 0:00:29.7]} 32... Rac8 {[%clk 0:01:31.3]} 33. Kd3 {[%clk 0:00:29.2]}
33... Rxc1 {[%clk 0:01:29.7]} 34. Bxc1 {[%clk 0:00:30.1]} 34... Kg7 {[%clk
0:01:26.7]} 35. Bd2 {[%clk 0:00:29.5]} 35... Rc8 {[%clk 0:01:19.3]} 36. Rf1
{[%clk 0:00:28.3]} 36... Kf6 {[%clk 0:01:03]} 37. Be1 {[%clk 0:00:24.9]} 37...
Ke6 {[%clk 0:01:00.9]} 38. Bh4 {[%clk 0:00:23.4]} 38... Bb4 {[%clk 0:00:58.2]}
39. Ra1 {[%clk 0:00:12.7]} 39... Rc3+ {[%clk 0:00:57.7]} 40. Ke2 {[%clk
0:00:13.5]} 40... Rc2+ {[%clk 0:00:57.6]} 41. Kf3 {[%clk 0:00:14.1]} 41... Bc3
{[%clk 0:00:53.1]} 42. Rg1 {[%clk 0:00:13.7]} 42... b5 {[%clk 0:00:46.4]} 43. g4
{[%clk 0:00:14.4]} 43... fxg4+ {[%clk 0:00:30.2]} 44. hxg4 {[%clk 0:00:15.3]}
44... Rh2 {[%clk 0:00:26]} 45. Bg3 {[%clk 0:00:15.4]} 45... Rxa2 {[%clk
0:00:22.2]} 46. gxh5 {[%clk 0:00:15]} 46... gxh5 {[%clk 0:00:22.9]} 47. Rh1
{[%clk 0:00:15.6]} 47... a5 {[%clk 0:00:20.2]} 48. Rxh5 {[%clk 0:00:16.1]} 48...
a4 {[%clk 0:00:20.3]} 49. Re5+ {[%clk 0:00:16.6]} 49... Kd6 {[%clk 0:00:17.7]}
50. Re8+ {[%clk 0:00:12.3]} 50... Kd7 {[%clk 0:00:17.3]} 51. Re5 {[%clk
0:00:06.2]} 51... Kc6 {[%clk 0:00:17.1]} 52. bxa4 {[%clk 0:00:05.4]} 52... bxa4
{[%clk 0:00:15.1]} 53. Re6+ {[%clk 0:00:06.3]} 53... Kb5 {[%clk 0:00:15.1]} 54.
Bd6 {[%clk 0:00:05.5]} 54... Bb4 {[%clk 0:00:11.7]} 55. Bxb4 {[%clk 0:00:02.8]}
55... Kxb4 {[%clk 0:00:12.6]} 56. Rd6 {[%clk 0:00:03.1]} 56... Kc4 {[%clk
0:00:12.9]} 57. Rc6+ {[%clk 0:00:03.6]} 57... Kd3 {[%clk 0:00:12.4]} 58. Rc5
{[%clk 0:00:04.2]} 58... a3 {[%clk 0:00:12.3]} 59. Rxd5 {[%clk 0:00:04.5]} 59...
Rh2 {[%clk 0:00:11.8]} 60. Ra5 {[%clk 0:00:04.9]} 60... a2 {[%clk 0:00:11.4]}
61. d5 {[%clk 0:00:04.5]} 61... Kc3 {[%clk 0:00:10.7]} 62. Ke4 {[%clk
0:00:04.8]} 62... Kb3 {[%clk 0:00:08.9]} 63. d6 {[%clk 0:00:04.5]} 63... Rd2
{[%clk 0:00:08.6]} 64. Ke5 {[%clk 0:00:05]} 64... Kb4 {[%clk 0:00:05.5]} 65. Ra8
{[%clk 0:00:04.4]} 65... Kc5 {[%clk 0:00:05.6]} 66. e4 {[%clk 0:00:02.3]} 66...
Rxd6 {[%clk 0:00:04.5]} 67. Ra5+ {[%clk 0:00:02.2]} 67... Kc6 {[%clk 0:00:03.2]}
68. Ra6+ {[%clk 0:00:02.3]} 68... Kc7 {[%clk 0:00:03.2]} 69. Ra7+ {[%clk
0:00:02.5]} 69... Kc6 {[%clk 0:00:01.9]} 70. Rxa2 {[%clk 0:00:03.4]} 70... Rd1
{[%clk 0:00:01.2]} 71. Ra6+ {[%clk 0:00:04]} 71... Kd7 {[%clk 0:00:01.6]} 72.
Ra7+ {[%clk 0:00:04.5]} 72... Ke8 {[%clk 0:00:02]} 73. Ke6 {[%clk 0:00:05]}
73... Kf8 {[%clk 0:00:01.7]} 74. Ra8+ {[%clk 0:00:05.2]} 74... Kg7 {[%clk
0:00:02.2]} 75. e5 {[%clk 0:00:05.9]} 75... Rd2 {[%clk 0:00:02.6]} 76. Ke7
{[%clk 0:00:06.1]} 76... Re2 {[%clk 0:00:02.3]} 77. e6 {[%clk 0:00:06.3]} 77...
Rd2 {[%clk 0:00:03.1]} 78. Ra4 {[%clk 0:00:05.9]} 78... Rg2 {[%clk 0:00:02.7]}
79. Rf4 {[%clk 0:00:03.9]} 79... Kg8 {[%clk 0:00:02.9]} 80. Ke8 {[%clk
0:00:04.1]} 80... Kg7 {[%clk 0:00:03.1]} 81. e7 {[%clk 0:00:04.6]} 81... Kg8
{[%clk 0:00:03.7]} 82. Kd7 {[%clk 0:00:04.5]} 82... Rd2+ {[%clk 0:00:03.8]} 83.
Ke6 {[%clk 0:00:05.2]} 83... Re2+ {[%clk 0:00:04.2]} 84. Kd7 {[%clk 0:00:03.3]}
84... Rd2+ {[%clk 0:00:04.4]} 85. Ke8 {[%clk 0:00:03.9]} 85... Re2 {[%clk
0:00:04.9]} 86. Rg4+ {[%clk 0:00:04.2]} 86... Kh7 {[%clk 0:00:05.3]} 87. Kf7
{[%clk 0:00:04.8]} 87... Rf2+ {[%clk 0:00:05.3]} 88. Ke6 {[%clk 0:00:05.5]}
88... Re2+ {[%clk 0:00:05.8]} 89. Kf6 {[%clk 0:00:06.2]} 89... Rf2+ {[%clk
0:00:06.1]} 90. Ke5 {[%clk 0:00:06.9]} 90... Re2+ {[%clk 0:00:06]} 91. Re4
{[%clk 0:00:07.3]} 1-0

[Event "Late-Titled-Tuesday-Blitz-September-26-2023"]
[Site "Chess.com"]
[Date "2023.09.26"]
[Round "8"]
[White "Jospem"]
[Black "Firouzja2003"]
[Result "1-0"]
[WhiteElo "3007"]
[BlackElo "3086"]
[TimeControl "180+1"]
[EndTime "15:27:40 PDT"]
[Termination "Jospem won on time"]

1. e4 {[%clk 0:03:00.9]} 1... c5 {[%clk 0:02:59.6]} 2. Nf3 {[%clk 0:03:01.3]}
2... e6 {[%clk 0:03:00.1]} 3. c3 {[%clk 0:03:01.7]} 3... Nf6 {[%clk 0:02:59.7]}
4. Bd3 {[%clk 0:03:01.6]} 4... Nc6 {[%clk 0:02:57.8]} 5. Bc2 {[%clk 0:03:01.8]}
5... e5 {[%clk 0:02:34.5]} 6. O-O {[%clk 0:02:57.8]} 6... d5 {[%clk 0:02:32.5]}
7. exd5 {[%clk 0:02:43.1]} 7... Qxd5 {[%clk 0:02:32.6]} 8. d3 {[%clk 0:02:43.1]}
8... Bf5 {[%clk 0:02:24.1]} 9. Re1 {[%clk 0:02:36.4]} 9... O-O-O {[%clk
0:02:12.6]} 10. Bb3 {[%clk 0:02:26.2]} 10... Qd7 {[%clk 0:02:03]} 11. Ba4 {[%clk
0:01:41.2]} 11... Bd6 {[%clk 0:01:57.9]} 12. Na3 {[%clk 0:01:33.8]} 12... Bg4
{[%clk 0:01:22.7]} 13. h3 {[%clk 0:01:30.4]} 13... Bh5 {[%clk 0:01:14.4]} 14.
Nc4 {[%clk 0:01:24.2]} 14... Rhe8 {[%clk 0:00:53.1]} 15. Bg5 {[%clk 0:01:01.9]}
15... h6 {[%clk 0:00:33.6]} 16. Bxf6 {[%clk 0:01:02.1]} 16... gxf6 {[%clk
0:00:34.5]} 17. g4 {[%clk 0:00:46.2]} 17... Rg8 {[%clk 0:00:25.6]} 18. Kf1
{[%clk 0:00:30.7]} 18... Bg6 {[%clk 0:00:21.8]} 19. Nh4 {[%clk 0:00:31.4]} 19...
Bh7 {[%clk 0:00:13.2]} 20. Ne3 {[%clk 0:00:26.1]} 20... Bc7 {[%clk 0:00:12.2]}
21. Nhf5 {[%clk 0:00:25.6]} 21... h5 {[%clk 0:00:12.5]} 22. Qe2 {[%clk
0:00:22.1]} 22... hxg4 {[%clk 0:00:12.4]} 23. hxg4 {[%clk 0:00:23]} 23... Kb8
{[%clk 0:00:12.2]} 24. Rad1 {[%clk 0:00:23]} 24... Rh8 {[%clk 0:00:07.9]} 25.
Qf3 {[%clk 0:00:18.4]} 25... Qe6 {[%clk 0:00:05.9]} 26. Bb3 {[%clk 0:00:16.3]}
26... Qc8 {[%clk 0:00:05.2]} 27. Bd5 {[%clk 0:00:16.9]} 27... Qd7 {[%clk
0:00:03.7]} 28. Be4 {[%clk 0:00:17.3]} 28... Bg6 {[%clk 0:00:03.5]} 29. Ke2
{[%clk 0:00:18]} 29... Bb6 {[%clk 0:00:03.6]} 30. Rh1 {[%clk 0:00:16.4]} 30...
Rxh1 {[%clk 0:00:02.7]} 31. Rxh1 {[%clk 0:00:17.3]} 31... Ne7 {[%clk 0:00:01.9]}
32. Nxe7 {[%clk 0:00:15.1]} 32... Qxe7 {[%clk 0:00:02.8]} 33. Rd1 {[%clk
0:00:15]} 33... Qe6 {[%clk 0:00:03.3]} 34. c4 {[%clk 0:00:12.7]} 34... Rd7
{[%clk 0:00:02.4]} 35. Bf5 {[%clk 0:00:13.2]} 35... Bxf5 {[%clk 0:00:03]} 36.
gxf5 {[%clk 0:00:13.9]} 36... Qd6 {[%clk 0:00:02.8]} 37. Nd5 {[%clk 0:00:13.3]}
37... a6 {[%clk 0:00:03.6]} 38. Qe4 {[%clk 0:00:13.5]} 38... Ka7 {[%clk
0:00:03.9]} 39. Rh1 {[%clk 0:00:14.1]} 39... Bd8 {[%clk 0:00:03.3]} 40. b3
{[%clk 0:00:14.7]} 40... Qc6 {[%clk 0:00:02.4]} 41. Rh6 {[%clk 0:00:14.4]} 41...
Qd6 {[%clk 0:00:02.8]} 42. Rh7 {[%clk 0:00:14]} 42... Qc6 {[%clk 0:00:03.2]} 43.
Rh6 {[%clk 0:00:12.5]} 43... Qd6 {[%clk 0:00:03.9]} 44. a3 {[%clk 0:00:13.2]}
44... Qc6 {[%clk 0:00:04.3]} 45. Rh8 {[%clk 0:00:13.3]} 45... Qd6 {[%clk
0:00:05.1]} 46. Qe3 {[%clk 0:00:13.6]} 46... Qc6 {[%clk 0:00:04.9]} 47. b4
{[%clk 0:00:14]} 47... Bb6 {[%clk 0:00:05.7]} 48. Qe4 {[%clk 0:00:05.8]} 48...
Qa4 {[%clk 0:00:05]} 49. Kf1 {[%clk 0:00:03.6]} 49... Qd1+ {[%clk 0:00:04.6]}
50. Kg2 {[%clk 0:00:03.9]} 50... cxb4 {[%clk 0:00:04.9]} 51. axb4 {[%clk
0:00:04.8]} 51... Bd4 {[%clk 0:00:05.1]} 52. Nxf6 {[%clk 0:00:04.9]} 52... Rd6
{[%clk 0:00:04.7]} 53. Ne8 {[%clk 0:00:02.8]} 53... Rb6 {[%clk 0:00:03.8]} 54.
Nc7 {[%clk 0:00:03.1]} 54... Rd6 {[%clk 0:00:03.1]} 55. Ra8+ {[%clk 0:00:03.6]}
55... Kb6 {[%clk 0:00:03.7]} 56. Nd5+ {[%clk 0:00:04.5]} 56... Rxd5 {[%clk
0:00:04.4]} 57. cxd5 {[%clk 0:00:03.1]} 57... Qd2 {[%clk 0:00:04.1]} 58. Qf3
{[%clk 0:00:02.9]} 58... Qg5+ {[%clk 0:00:03.9]} 59. Qg3 {[%clk 0:00:03]} 59...
Qxf5 {[%clk 0:00:04.3]} 60. Rd8 {[%clk 0:00:01.9]} 60... Qf6 {[%clk 0:00:02.9]}
61. Rg8 {[%clk 0:00:02]} 61... Qf5 {[%clk 0:00:02.2]} 62. Qf3 {[%clk 0:00:02.1]}
62... Qh7 {[%clk 0:00:02.5]} 63. Rg3 {[%clk 0:00:02]} 63... f5 {[%clk 0:00:03]}
64. d6 {[%clk 0:00:02.8]} 64... Qf7 {[%clk 0:00:02.8]} 65. Rh3 {[%clk
0:00:03.1]} 65... Qe6 {[%clk 0:00:02.9]} 66. Rg3 {[%clk 0:00:03.1]} 66... Qxd6
{[%clk 0:00:02.7]} 67. Qxf5 {[%clk 0:00:03.5]} 67... Qxb4 {[%clk 0:00:03.4]} 68.
Qe4 {[%clk 0:00:04]} 68... Ka5 {[%clk 0:00:03.1]} 69. Rg7 {[%clk 0:00:04.1]}
69... b5 {[%clk 0:00:03.7]} 70. Rg6 {[%clk 0:00:04.6]} 70... Qc5 {[%clk
0:00:02.5]} 71. Rf6 {[%clk 0:00:04.3]} 71... Kb4 {[%clk 0:00:02.7]} 72. Rxa6
{[%clk 0:00:03.9]} 72... Qc8 {[%clk 0:00:02.6]} 73. Rc6 {[%clk 0:00:04]} 73...
Qg8+ {[%clk 0:00:02.8]} 74. Kf1 {[%clk 0:00:04.6]} 74... Qb3 {[%clk 0:00:02]}
75. Qe1+ {[%clk 0:00:05.1]} 75... Ka3 {[%clk 0:00:01.6]} 76. Ra6+ {[%clk
0:00:05.1]} 76... Kb2 {[%clk 0:00:01.8]} 77. Qd2+ {[%clk 0:00:04.7]} 77... Kb1
{[%clk 0:00:02.4]} 78. Rc6 {[%clk 0:00:05.2]} 78... Qb2 {[%clk 0:00:01.6]} 79.
Qd1+ {[%clk 0:00:05]} 79... Ka2 {[%clk 0:00:02.2]} 80. Ra6+ {[%clk 0:00:04.8]}
80... Qa3 {[%clk 0:00:02.5]} 81. Qc2+ {[%clk 0:00:05]} 81... Bb2 {[%clk
0:00:02.5]} 82. Rxa3+ {[%clk 0:00:05.5]} 82... Kxa3 {[%clk 0:00:03.4]} 83. Ke2
{[%clk 0:00:06.1]} 83... b4 {[%clk 0:00:04.3]} 84. Kd1 {[%clk 0:00:05.9]} 84...
b3 {[%clk 0:00:03]} 85. Qc5+ {[%clk 0:00:06.1]} 85... Ka2 {[%clk 0:00:03.9]} 86.
Qc4 {[%clk 0:00:05.2]} 86... Bd4 {[%clk 0:00:03.7]} 87. Kc1 {[%clk 0:00:03.7]}
87... Bb2+ {[%clk 0:00:03.9]} 88. Kd2 {[%clk 0:00:04.2]} 88... Bd4 {[%clk
0:00:01.3]} 89. f4 {[%clk 0:00:04.8]} 1-0

[Event "Late-Titled-Tuesday-Blitz-September-26-2023"]
[Site "Chess.com"]
[Date "2023.09.26"]
[Round "9"]
[White "Roedor"]
[Black "KaydenTroffChess"]
[Result "0-1"]
[WhiteElo "2390"]
[BlackElo "2754"]
[TimeControl "180+1"]
[EndTime "15:38:29 PDT"]
[Termination "KaydenTroffChess won by resignation"]

1. d4 {[%clk 0:03:00.9]} 1... Nf6 {[%clk 0:02:56.7]} 2. c4 {[%clk 0:03:00.7]}
2... g6 {[%clk 0:02:57.1]} 3. g3 {[%clk 0:03:00.8]} 3... c5 {[%clk 0:02:56.4]}
4. Nf3 {[%clk 0:03:00]} 4... cxd4 {[%clk 0:02:53.1]} 5. Nxd4 {[%clk 0:03:00.9]}
5... Bg7 {[%clk 0:02:53]} 6. Bg2 {[%clk 0:03:01.1]} 6... Nc6 {[%clk 0:02:52.3]}
7. Nc3 {[%clk 0:03:01]} 7... O-O {[%clk 0:02:51.7]} 8. O-O {[%clk 0:03:00.8]}
8... Nxd4 {[%clk 0:02:49.4]} 9. Qxd4 {[%clk 0:03:01.7]} 9... d6 {[%clk 0:02:50]}
10. Qd3 {[%clk 0:03:01.6]} 10... Bf5 {[%clk 0:02:42.9]} 11. e4 {[%clk
0:03:01.2]} 11... Be6 {[%clk 0:02:43.1]} 12. Bd2 {[%clk 0:02:52.4]} 12... a6
{[%clk 0:02:42.2]} 13. Rac1 {[%clk 0:02:47.3]} 13... b5 {[%clk 0:02:36.2]} 14.
cxb5 {[%clk 0:02:45.5]} 14... axb5 {[%clk 0:02:36]} 15. a3 {[%clk 0:02:45.6]}
15... Bc4 {[%clk 0:02:35.5]} 16. Qc2 {[%clk 0:02:39.9]} 16... Bxf1 {[%clk
0:02:34.3]} 17. Bxf1 {[%clk 0:02:40.8]} 17... Qb6 {[%clk 0:02:13.6]} 18. Be3
{[%clk 0:02:37.9]} 18... Qb7 {[%clk 0:02:13]} 19. Bxb5 {[%clk 0:02:32.2]} 19...
Rfc8 {[%clk 0:02:11.4]} 20. Bd3 {[%clk 0:02:29.9]} 20... Ng4 {[%clk 0:02:05.2]}
21. Bd2 {[%clk 0:02:20.9]} 21... Bd4 {[%clk 0:02:04]} 22. Be1 {[%clk 0:02:20.7]}
22... Ne5 {[%clk 0:01:50.4]} 23. Be2 {[%clk 0:02:14.3]} 23... Rab8 {[%clk
0:01:45.1]} 24. Rb1 {[%clk 0:01:58.3]} 24... Qb3 {[%clk 0:01:16.7]} 25. Qxb3
{[%clk 0:01:39.9]} 25... Rxb3 {[%clk 0:01:16.3]} 26. Nd5 {[%clk 0:01:40.6]}
26... Kf8 {[%clk 0:01:07.8]} 27. Bc3 {[%clk 0:01:21.7]} 27... Bxc3 {[%clk
0:01:05.4]} 28. Nxc3 {[%clk 0:01:22]} 28... Rcxc3 {[%clk 0:01:05.5]} 0-1

[Event "Late-Titled-Tuesday-Blitz-September-26-2023"]
[Site "Chess.com"]
[Date "2023.09.26"]
[Round "9"]
[White "fyall777"]
[Black "0gZPanda"]
[Result "0-1"]
[WhiteElo "2594"]
[BlackElo "3019"]
[TimeControl "180+1"]
[EndTime "15:38:40 PDT"]
[Termination "0gZPanda won on time"]

1. e4 {[%clk 0:03:00.1]} 1... c5 {[%clk 0:03:00.2]} 2. f4 {[%clk 0:02:57.7]}
2... d5 {[%clk 0:03:00.3]} 3. exd5 {[%clk 0:02:57.1]} 3... Qxd5 {[%clk
0:03:01.2]} 4. Nc3 {[%clk 0:02:56.7]} 4... Qd8 {[%clk 0:03:00.5]} 5. Nf3 {[%clk
0:02:54.1]} 5... Nc6 {[%clk 0:03:00.3]} 6. Bb5 {[%clk 0:02:53.8]} 6... Bd7
{[%clk 0:02:50.2]} 7. O-O {[%clk 0:02:53.6]} 7... e6 {[%clk 0:02:49.7]} 8. d3
{[%clk 0:02:50.8]} 8... Nge7 {[%clk 0:02:48.4]} 9. Ne4 {[%clk 0:02:43]} 9... Nd5
{[%clk 0:02:41.3]} 10. c3 {[%clk 0:02:32.5]} 10... Be7 {[%clk 0:02:38.6]} 11.
Bxc6 {[%clk 0:02:28.6]} 11... Bxc6 {[%clk 0:02:39.5]} 12. Ne5 {[%clk 0:02:28.5]}
12... Rc8 {[%clk 0:02:39]} 13. f5 {[%clk 0:02:25.3]} 13... exf5 {[%clk
0:02:36.8]} 14. Rxf5 {[%clk 0:02:04.7]} 14... O-O {[%clk 0:02:36.6]} 15. Nxc6
{[%clk 0:02:00.5]} 15... Rxc6 {[%clk 0:02:37.5]} 16. Qf3 {[%clk 0:01:59.5]}
16... Nf6 {[%clk 0:02:36.6]} 17. Nxf6+ {[%clk 0:01:33.1]} 17... Bxf6 {[%clk
0:02:35.5]} 18. Bf4 {[%clk 0:01:22.3]} 18... Qb6 {[%clk 0:02:34.8]} 19. Qf2
{[%clk 0:01:12.1]} 19... Rd8 {[%clk 0:02:33.8]} 20. Re1 {[%clk 0:00:40.7]} 20...
h6 {[%clk 0:02:26.2]} 21. Be5 {[%clk 0:00:32.9]} 21... Bxe5 {[%clk 0:02:24.4]}
22. Rexe5 {[%clk 0:00:32.5]} 22... f6 {[%clk 0:02:17.7]} 23. Re3 {[%clk
0:00:27.5]} 23... Rcd6 {[%clk 0:02:14.7]} 24. h3 {[%clk 0:00:20.4]} 24... Rxd3
{[%clk 0:02:13.7]} 25. Rxd3 {[%clk 0:00:20.7]} 25... Rxd3 {[%clk 0:02:14.2]} 26.
Rxc5 {[%clk 0:00:21]} 26... Rd1+ {[%clk 0:02:11.1]} 27. Kh2 {[%clk 0:00:20.6]}
27... Qd6+ {[%clk 0:02:11.8]} 0-1